bitfinex/quotes_ETHUSD_20250720
["timestamp","ask_amount","ask_price","bid_price","bid_amount"]
[1753048826955,11.56176045,3759.2,3759.1,0.02]
[1753048827140,16.3649918,3759.2,3759.1,0.02]
[1753048827348,12.2459918,3759.2,3759.1,0.02]
[1753048827681,8.90362,3759.2,3759.1,0.02]
[1753048827992,11.56376045,3759.2,3759.1,0.02]
[1753048828140,16.3669918,3759.2,3759.1,0.02]
[1753048828338,2.66063745,3758.5,3758.1,0.02]
[1753048828557,2.66084827,3758.2,3758.1,0.02]
[1753048828964,3.10444827,3758.2,3758.1,0.02]
[1753048829278,6.10444827,3758.2,3758.1,0.02]
[1753048829480,3.4436,3758.2,3758.1,0.02]
[1753048829898,2.66127315,3757.6,3757.5,0.001]
[1753048830178,11.85663181,3757.6,3757.5,0.001]
[1753048830340,14.85663181,3757.6,3757.5,0.001]
[1753048830546,15.30023181,3757.6,3757.5,0.001]
[1753048830788,0.26612731,3757.6,3757.5,0.001]
[1753048830958,3.0,3758.1,3757.5,0.001]
[1753048831153,6.79201282,3758.0,3757.5,0.001]
[1753048831462,2.66106069,3757.9,3757.5,0.001]
[1753048831640,3.4436,3757.9,3757.5,0.001]
[1753048831844,1.50106,3757.8,3757.5,0.001]
[1753048832069,4.131,3757.7,3757.5,0.001]
[1753048832582,4.134,3757.6,3757.5,0.001]
[1753048833147,3.0,3758.1,3757.5,2.66231846]
[1753048833485,2.66127315,3757.6,3757.5,0.001]
[1753048833671,10.63451362,3757.6,3757.5,0.001]
[1753048833846,11.83961362,3757.6,3757.5,0.001]
[1753048834050,6.42305647,3757.2,3757.1,0.12]
[1753048834267,15.37328782,3757.2,3757.1,0.12]
[1753048834470,15.81688782,3757.2,3757.1,0.12]
[1753048834782,18.36472301,3757.2,3757.1,0.12]
[1753048835288,2.66226505,3756.2,3755.4,0.7775]
[1753048835490,2.66226505,3756.2,3752.7,3.07093655]
[1753048835491,2.662974,3755.2,3754.7,0.7528]
[1753048835661,6.811974,3755.2,3754.2,1.1837]
[1753048835864,7.7594597,3755.2,3754.2,1.1837]
[1753048836190,7.7594597,3755.2,3754.1,0.02]
[1753048836191,7.7614597,3755.2,3754.3,0.4309]
[1753048836491,4.151,3755.2,3754.4,2.66353068]
[1753048836695,4.152,3755.2,3754.6,0.4309]
[1753048836864,4.152,3755.2,3755.0,2.66311252]
[1753048837194,6.814974,3755.2,3754.1,0.4509]
[1753048837550,7.258574,3755.2,3754.1,0.4509]
[1753048837982,2.662974,3755.2,3754.2,2.66364604]
[1753048838213,6.814974,3755.2,3754.4,2.66353066]
[1753048838685,6.817974,3755.2,3754.5,0.4309]
[1753048838887,8.24638009,3755.2,3754.1,0.1528]
[1753048839094,12.46348009,3755.2,3754.1,0.02]
[1753048840064,12.46448009,3755.2,3754.1,0.02]
[1753048840276,13.16448009,3755.2,3755.1,1e-08]
[1753048840502,19.54748009,3755.2,3755.1,1e-08]
[1753048840704,15.39148009,3755.2,3755.1,1e-08]
[1753048841013,19.10288009,3755.2,3755.1,1e-08]
[1753048841369,19.54648009,3755.2,3755.1,1e-08]
[1753048842470,15.39148009,3755.2,3755.1,1e-08]
[1753048842664,19.10288009,3755.2,3755.1,1e-08]
[1753048843469,7.083,3755.2,3755.1,1e-08]
[1753048843691,10.538,3755.2,3755.1,1e-08]
[1753048844073,10.538,3755.2,3755.1,0.43090001]
[1753048844303,0.1328,3755.2,3755.1,3.09394493]
[1753048844487,0.8004,3756.8,3755.1,3.87671801]
[1753048844696,0.1328,3756.3,3755.2,1.14520154]
[1753048844901,4.80323135,3756.6,3755.3,0.4309]
[1753048845097,0.1328,3756.0,3755.3,0.4309]
[1753048845296,3.38040284,3756.8,3755.3,0.4309]
[1753048845297,0.71854,3756.8,3756.3,2.66214981]
[1753048845474,4.167,3756.7,3756.4,0.4309]
[1753048845673,6.385,3756.9,3756.4,0.4309]
[1753048845875,0.1328,3757.0,3756.4,0.7601]
[1753048846077,6.385,3758.5,3757.2,2.66155647]
[1753048846078,4.17,3757.3,3757.2,2.66155647]
[1753048846385,0.1328,3757.1,3756.9,2.66175867]
[1753048846586,4.171,3757.0,3756.4,0.7601]
[1753048846817,0.1328,3756.4,3755.8,0.8086]
[1753048847027,0.1328,3755.9,3755.8,1.2395]
[1753048847327,6.96927896,3755.9,3755.5,0.4309]
[1753048847525,6.96927896,3755.9,3755.2,0.8086]
[1753048847526,4.174,3755.9,3755.2,0.8086]
[1753048847729,0.7629,3756.5,3755.1,0.43090001]
[1753048847730,0.1328,3755.4,3755.1,1e-08]
[1753048847928,3.7629,3756.5,3755.1,1e-08]
[1753048847929,0.1328,3755.2,3755.1,1e-08]
[1753048848091,4.3148,3755.2,3755.1,1e-08]
[1753048848432,6.844974,3755.2,3755.1,1e-08]
[1753048848631,7.288574,3755.2,3755.1,1e-08]
[1753048848935,3.47138334,3754.2,3752.8,1.2538]
[1753048849241,10.65738334,3754.2,3753.2,2.66438441]
[1753048849428,0.8077,3754.2,3753.3,0.4309]
[1753048849605,6.85168334,3754.2,3753.4,2.66423442]
[1753048849801,4.188,3754.2,3753.5,2.66417691]
[1753048850124,4.188,3754.2,3753.3,0.4309]
[1753048850125,6.85268334,3754.2,3753.3,0.4309]
[1753048850327,8.1043072,3754.2,3753.1,1e-08]
[1753048850639,5.44062386,3754.2,3753.5,2.66417306]
[1753048850806,3.0,3754.6,3753.6,2.66403928]
[1753048851008,4.188,3754.5,3753.5,0.4309]
[1753048851244,3.0,3754.6,3753.5,0.4309]
[1753048851435,4.188,3754.4,3753.6,2.66410244]
[1753048851712,4.189,3754.3,3754.1,3.1146056]
[1753048851912,0.8077,3754.8,3754.1,0.02]
[1753048852151,6.387,3755.1,3754.2,0.4309]
[1753048852152,4.189,3754.7,3754.2,0.4309]
[1753048852446,4.189,3754.7,3754.3,2.66354916]
[1753048852623,6.387,3755.1,3754.8,2.66324143]
[1753048852823,6.387,3755.1,3754.1,0.04663754]
[1753048853047,4.19,3755.0,3754.7,2.66326336]
[1753048853348,4.19,3755.0,3754.4,0.4309]
[1753048853522,4.19,3755.0,3754.4,3.09441584]
[1753048853852,4.19,3755.0,3754.6,2.6633392]
[1753048854020,4.189,3754.9,3754.8,2.66320429]
[1753048854212,4.189,3754.9,3754.2,0.35282458]
[1753048854417,4.189,3754.9,3754.8,0.4309]
[1753048854959,6.387,3755.1,3754.8,0.4309]
[1753048855111,4.188,3755.0,3754.9,2.66318676]
[1753048855312,6.387,3755.1,3755.0,0.4309]
[1753048855638,4.187,3755.1,3755.0,0.4309]
[1753048855958,0.7784,3755.8,3755.3,2.66285418]
[1753048856255,2.6625495,3755.8,3755.0,1.2361]
[1753048856558,0.8226,3756.6,3755.1,0.4309]
[1753048856771,0.43028,3757.1,3755.2,3.0]
[1753048857083,2.66154738,3757.3,3756.3,2.66219147]
[1753048857363,4.194,3756.8,3756.7,2.66191071]
[1753048857569,6.387,3757.6,3756.8,2.66183986]
[1753048857733,4.215,3756.9,3756.8,3.09213986]
[1753048858328,4.3478,3756.9,3756.8,3.09213986]
[1753048858530,4.3468,3756.9,3756.8,3.09213986]
[1753048858780,4.3468,3756.9,3756.2,0.1328]
[1753048858982,4.3468,3756.9,3755.4,3.09306542]
[1753048858983,2.79488908,3756.5,3755.4,3.09306542]
[1753048859136,0.1328,3755.9,3755.6,2.66262495]
[1753048859333,0.1328,3755.9,3755.7,0.4303]
[1753048859566,4.195,3755.8,3755.7,0.4303]
[1753048859743,4.195,3755.8,3755.3,1.263]
[1753048860171,0.1328,3755.5,3754.8,0.8958]
[1753048860355,4.196,3755.4,3754.4,0.763]
[1753048860560,0.1328,3754.6,3754.4,0.763]
[1753048860930,0.1328,3754.6,3754.1,0.02]
[1753048861134,0.1328,3754.3,3754.1,0.02]
[1753048861333,4.80323135,3755.0,3754.1,0.02]
[1753048861334,2.66368334,3754.2,3754.1,0.02]
[1753048861557,6.86168334,3754.2,3754.1,0.02]
[1753048862443,4.198,3754.2,3754.1,0.02]
[1753048862664,3.0,3754.9,3754.1,0.4503]
[1753048862985,3.0,3754.9,3754.1,0.02]
[1753048862986,2.66368334,3754.2,3754.1,0.02]
[1753048863138,6.86068334,3754.2,3754.1,0.02]
[1753048863336,10.67928334,3754.2,3754.1,0.02]
[1753048863542,2.66439305,3753.2,3752.0,0.1328]
[1753048863753,11.2862244,3753.2,3751.6,0.4303]
[1753048863975,13.13417663,3753.2,3751.6,0.4303]
[1753048864160,13.13417663,3753.2,3751.3,0.7585]
[1753048864161,16.88627663,3753.2,3752.1,3.09547342]
[1753048864468,2.66510313,3752.2,3752.1,1e-08]
[1753048864667,6.87010313,3752.2,3752.1,1e-08]
[1753048864870,4.205,3752.2,3752.1,1e-08]
[1753048865170,6.87010313,3752.2,3752.1,1e-08]
[1753048865375,6.87010313,3752.2,3751.1,0.13]
[1753048865376,0.8186,3752.1,3751.1,0.13]
[1753048865535,2.66580522,3751.3,3751.1,0.13]
[1753048865737,6.4838241,3752.1,3751.2,3.0961136]
[1753048865738,0.8186,3752.1,3751.2,3.0961136]
[1753048865949,0.8186,3752.7,3751.3,0.4303]
[1753048866150,3.0,3752.5,3751.4,0.02665671]
[1753048866439,0.8186,3753.3,3751.5,0.4303]
[1753048866638,4.211,3753.2,3751.7,2.66545832]
[1753048866882,7.46745978,3753.5,3751.7,2.66545832]
[1753048866883,4.215,3753.1,3752.9,2.6645498]
[1753048867175,4.80323135,3753.5,3752.9,3.09488576]
[1753048867176,4.215,3753.0,3752.9,3.09488576]
[1753048867349,4.80323135,3753.5,3751.9,0.7585]
[1753048867350,4.80323135,3753.5,3753.0,0.4303]
[1753048867550,0.8186,3754.0,3753.1,0.4303]
[1753048867750,0.8186,3754.0,3752.4,3.02664961]
[1753048867751,0.02,3753.9,3753.5,2.66418009]
[1753048868079,0.02,3753.9,3753.6,0.4303]
[1753048868248,4.217,3753.8,3753.6,0.4303]
[1753048868441,4.217,3753.8,3753.7,2.66403814]
[1753048868638,0.02,3753.9,3753.8,2.66396717]
[1753048869060,0.02,3753.9,3753.7,0.4303]
[1753048869282,0.02,3753.9,3753.1,3.42290925]
[1753048869283,1e-08,3753.9,3753.8,6.12090684]
[1753048869465,1e-08,3754.9,3754.8,6.46755769]
[1753048869664,0.02,3756.9,3755.8,2.66254859]
[1753048869852,0.02,3756.9,3755.8,3.46684859]
[1753048870049,0.02,3756.9,3755.8,6.89714859]
[1753048870359,0.02,3756.9,3756.8,5.66183986]
[1753048870563,1e-08,3756.9,3756.8,7.2708211]
[1753048870746,0.24746618,3758.7,3757.8,2.66113151]
[1753048870947,3.44236142,3758.8,3757.8,2.66113151]
[1753048871176,2.66055509,3758.7,3757.5,3.09158483]
[1753048871382,1.02936618,3758.8,3757.5,0.4303]
[1753048871591,4.233,3758.4,3756.9,0.4303]
[1753048871741,2.661278,3757.6,3756.7,2.66188515]
[1753048871941,2.661278,3757.6,3756.3,4.204]
[1753048871942,6.89618582,3757.8,3756.6,2.66197041]
[1753048872152,2.66128925,3757.6,3756.6,2.66198157]
[1753048872354,2.66128925,3757.6,3756.4,2.6621233]
[1753048872551,0.69161858,3757.7,3756.3,1.204]
[1753048872893,0.7514,3757.6,3756.3,0.7737]
[1753048873214,2.66155647,3757.2,3755.8,3.4303]
[1753048873339,6.89562731,3757.1,3755.8,0.4303]
[1753048873541,4.234,3757.1,3755.9,2.66245848]
[1753048873773,4.234,3757.1,3755.8,0.4303]
[1753048873938,0.002,3755.9,3755.8,3.09283796]
[1753048874143,0.002,3755.9,3755.8,0.4303]
[1753048874678,0.002,3755.9,3755.8,3.09284859]
[1753048874878,0.002,3755.9,3755.8,3.11947407]
[1753048875380,0.002,3755.9,3755.8,3.09284859]
[1753048875578,0.002,3755.9,3755.8,3.87838182]
[1753048876253,0.002,3755.9,3755.3,0.1328]
[1753048876654,0.002,3755.9,3755.1,2.68298702]
[1753048876854,0.1328,3755.5,3755.1,0.02]
[1753048877058,0.1328,3755.5,3755.1,2.68304046]
[1753048877260,2.66265432,3755.7,3755.1,0.02]
[1753048877473,0.1328,3755.3,3755.1,2.68302813]
[1753048877871,0.002,3755.9,3755.8,2.66254859]
[1753048878074,0.1348,3755.9,3755.8,2.66254859]
[1753048878263,0.1348,3755.9,3755.5,2.66275397]
[1753048878584,0.1348,3755.9,3755.7,2.66258991]
[1753048878785,0.1348,3755.9,3755.6,0.4303]
[1753048878989,0.002,3755.9,3755.1,5.21692689]
[1753048879175,0.1328,3755.6,3755.3,2.66287163]
[1753048879371,0.1328,3755.6,3755.1,5.21692689]
[1753048879571,0.1328,3755.6,3755.5,2.66276128]
[1753048880089,0.1328,3755.6,3755.1,4.252]
[1753048880387,0.1328,3755.2,3755.1,0.02]
[1753048880749,2.795774,3755.2,3755.1,0.02]
[1753048881093,2.66368334,3754.2,3754.1,0.02]
[1753048881465,4.229,3754.6,3754.1,0.02]
[1753048881661,2.66348594,3754.5,3754.1,0.02]
[1753048881867,4.231,3754.7,3754.1,0.02]
[1753048882065,3.4529,3755.2,3754.1,0.02]
[1753048882265,0.1328,3754.3,3754.2,2.66368334]
[1753048882468,5.0464,3755.6,3754.3,2.66361239]
[1753048882649,5.0464,3755.6,3754.1,0.02]
[1753048882650,0.1328,3754.2,3754.1,0.02]
[1753048883863,2.79648334,3754.2,3754.1,0.02]
[1753048884306,3.24938334,3754.2,3754.1,0.02]
[1753048884595,4.89932642,3754.2,3754.1,0.02]
[1753048885174,2.23564308,3754.2,3754.1,0.02]
[1753048885364,10.03148334,3754.2,3754.1,0.02]
[1753048885578,10.48438334,3754.2,3754.1,0.02]
[1753048885781,5.79648334,3754.2,3754.1,0.02]
[1753048886073,10.03348334,3754.2,3754.1,0.02]
[1753048886462,0.1328,3754.2,3754.1,0.02]
[1753048888913,0.1328,3754.2,3754.1,2.68375429]
[1753048889209,0.1328,3754.2,3754.1,3.65801855]
[1753048889405,5.52854809,3755.3,3754.2,2.66368334]
[1753048889605,0.1328,3754.8,3754.7,2.66332862]
[1753048889809,0.1328,3754.8,3754.3,0.02663612]
[1753048890119,4.235,3755.2,3754.1,0.02]
[1753048890120,0.1328,3754.5,3754.1,0.02]
[1753048890317,0.1328,3754.2,3754.1,0.02]
[1753048890912,0.1328,3754.2,3754.1,3.12325429]
[1753048891113,4.235,3754.9,3754.5,2.66344244]
[1753048891426,9.89700391,3755.2,3754.5,2.66346328]
[1753048891629,9.11962192,3755.2,3754.1,0.4595]
[1753048891845,0.1328,3754.5,3754.1,2.68374269]
[1753048891975,0.1328,3754.5,3754.1,0.02]
[1753048892574,6.31894809,3754.5,3754.1,0.02]
[1753048892811,2.66368334,3754.2,3754.1,0.02]
[1753048893109,8.80423063,3754.2,3754.1,0.02]
[1753048893309,0.7,3754.2,3754.1,0.02]
[1753048893513,0.7,3754.2,3754.1,2.68375429]
[1753048893674,0.8328,3754.2,3754.1,3.12325429]
[1753048893882,0.7,3754.2,3754.1,3.12325429]
[1753048894213,4.81495978,3755.4,3754.5,0.7677]
[1753048894411,0.1328,3754.9,3754.8,2.66325769]
[1753048894580,0.1328,3754.9,3754.8,3.10275769]
[1753048894779,0.1328,3754.9,3754.5,1.11082414]
[1753048894986,0.1328,3754.9,3754.6,0.4395]
[1753048895188,0.1328,3754.9,3754.8,2.66325769]
[1753048895417,4.236,3755.9,3754.8,0.4395]
[1753048895638,0.1328,3754.9,3754.6,2.66339855]
[1753048895942,0.1328,3754.9,3754.5,0.7677]
[1753048896235,0.1328,3754.9,3754.8,2.66325769]
[1753048896633,0.1328,3754.9,3754.8,3.10275769]
[1753048898499,0.002,3755.9,3754.8,1.51608501]
[1753048898700,0.1328,3755.4,3755.3,2.6628401]
[1753048898902,0.1328,3755.4,3755.3,3.1023401]
[1753048899101,0.002,3755.9,3755.3,3.10236507]
[1753048899297,0.1328,3755.7,3755.5,2.66273429]
[1753048899747,0.002,3755.9,3754.8,1.07658501]
[1753048900037,0.002,3755.9,3755.7,2.66261948]
[1753048900343,0.002,3755.9,3755.8,2.66254859]
[1753048901136,0.002,3755.9,3755.8,3.10204859]
[1753048901464,0.002,3755.9,3755.6,3.46018979]
[1753048901465,0.002,3755.9,3755.6,0.7975]
[1753048901682,2.66281884,3755.5,3754.5,0.4395]
[1753048901805,2.66305353,3755.1,3754.4,2.66353333]
[1753048902106,2.66284542,3755.4,3754.6,2.66334316]
[1753048902427,2.66284828,3755.4,3754.6,2.6633553]
[1753048902800,2.66284828,3755.4,3754.7,2.66332351]
[1753048903028,2.66303936,3755.2,3754.4,2.66347467]
[1753048903233,0.5325899,3755.2,3754.1,0.021]
[1753048903417,2.66368334,3754.2,3754.1,0.021]
[1753048903634,7.47838199,3754.6,3754.1,0.021]
[1753048903811,4.232,3754.8,3754.2,2.66362999]
[1753048904011,4.232,3754.8,3754.1,2.68473138]
[1753048904251,6.89526172,3754.8,3754.1,2.68473138]
[1753048904421,2.66320372,3754.9,3754.2,2.66365709]
[1753048904611,2.6631294,3755.0,3754.1,0.021]
[1753048904806,0.8301,3755.1,3754.2,2.66368334]
[1753048904807,4.231,3754.9,3754.2,2.66368334]
[1753048905010,0.8301,3755.1,3754.3,2.66359181]
[1753048905312,9.04795978,3755.3,3754.1,0.4605]
[1753048905521,9.04795978,3755.3,3754.9,2.66313065]
[1753048905522,4.233,3755.3,3754.9,2.66313065]
[1753048906009,3.002,3755.9,3755.0,0.4395]
[1753048906238,4.232,3755.6,3755.2,2.66296825]
[1753048906517,4.232,3755.6,3755.1,2.66303996]
[1753048906868,4.232,3755.6,3755.0,0.4395]
[1753048907050,4.232,3755.6,3755.0,2.66306488]
[1753048907907,0.86322598,3755.8,3754.6,2.66339956]
[1753048908123,5.17854858,3755.7,3754.5,0.4395]
[1753048908320,2.66289134,3755.4,3754.5,3.10293767]
[1753048908670,2.66285251,3755.4,3754.7,2.66332796]
[1753048908876,4.232,3755.3,3754.7,2.66332796]
[1753048909040,4.232,3755.3,3754.6,2.66338131]
[1753048909385,2.66269038,3755.6,3754.6,2.66339956]
[1753048909537,0.002,3755.9,3754.6,0.8023]
[1753048909738,0.002,3755.9,3754.8,2.66325769]
[1753048910061,0.002,3755.9,3754.7,0.5723]
[1753048910062,0.002,3755.9,3755.8,2.66254859]
[1753048910287,0.002,3755.9,3755.8,3.50367407]
[1753048910464,0.002,3755.9,3755.8,1.3868]
[1753048910687,0.002,3755.9,3755.3,0.4395]
[1753048910868,0.1348,3755.9,3755.6,2.66263484]
[1753048911236,0.1348,3755.9,3755.5,2.66275226]
[1753048911560,0.1348,3755.9,3755.8,2.66254859]
[1753048911767,0.1348,3755.9,3755.6,0.4395]
[1753048911969,0.1348,3755.9,3755.6,2.66269002]
[1753048912538,0.1348,3755.9,3755.7,2.66261175]
[1753048912739,0.1348,3755.9,3755.8,2.66254859]
[1753048913663,0.1348,3755.9,3755.6,2.66269038]
[1753048913835,0.1348,3755.9,3755.6,2.66268155]
[1753048914036,0.1348,3755.9,3755.7,2.6626035]
[1753048914576,0.1348,3755.9,3755.8,2.66254859]
[1753048914759,0.1348,3755.9,3755.7,2.66261784]
[1753048915098,0.1348,3755.9,3755.8,2.66254859]
[1753048915293,0.002,3755.9,3755.8,3.12867407]
[1753048915499,0.002,3755.9,3755.8,3.10204859]
[1753048915660,0.002,3755.9,3755.8,3.12867407]
[1753048915955,0.002,3755.9,3755.8,3.10204859]
[1753048916598,0.002,3755.9,3755.8,2.66254859]
[1753048917595,0.002,3755.9,3755.8,3.85864859]
[1753048917773,0.002,3755.9,3755.8,4.56653783]
[1753048918100,0.002,3755.9,3755.8,0.1328]
[1753048918268,0.002,3755.9,3755.3,0.1328]
[1753048918474,0.1328,3755.8,3755.3,2.66284817]
[1753048918658,0.1328,3755.8,3755.4,2.66282885]
[1753048919410,0.1328,3755.8,3755.1,0.1328]
[1753048919596,0.1328,3755.8,3755.4,0.4324]
[1753048919786,0.1328,3755.8,3755.1,0.1328]
[1753048920104,0.1328,3755.2,3755.0,0.001]
[1753048920265,6.89202533,3755.2,3755.0,0.001]
[1753048920467,4.229,3755.2,3755.0,0.001]
[1753048921177,2.66304492,3755.1,3755.0,0.001]
[1753048921363,7.84746795,3755.2,3755.0,0.001]
[1753048921764,3.41774492,3755.1,3755.0,0.001]
[1753048922172,7.64374492,3755.1,3755.0,0.001]
[1753048922708,4.225,3755.1,3755.0,0.001]
[1753048923006,0.1328,3755.6,3755.5,2.66276128]
[1753048923205,0.7642,3756.4,3755.8,2.66254859]
[1753048923393,0.1328,3756.0,3755.7,2.66257019]
[1753048923706,0.1328,3756.0,3755.8,2.66254859]
[1753048923907,0.1328,3756.0,3755.6,0.4324]
[1753048924273,0.1328,3756.0,3755.6,2.66262983]
[1753048924681,0.1328,3756.0,3755.4,0.1328]
[1753048924894,2.6629473,3755.3,3755.0,0.001]
[1753048925079,0.1328,3755.1,3755.0,0.001]
[1753048925913,0.1328,3755.1,3755.0,3.09651584]
[1753048926114,0.002,3755.9,3755.6,2.66267979]
[1753048926329,0.1328,3755.6,3755.4,2.66278222]
[1753048926496,0.1328,3755.6,3755.3,2.66289435]
[1753048926693,0.1328,3755.6,3755.2,3.09531139]
[1753048926919,0.1328,3755.6,3755.4,2.66283023]
[1753048927455,0.1328,3755.6,3755.5,2.66276128]
[1753048927600,0.1328,3755.6,3755.3,2.66290309]
[1753048928528,0.1328,3755.6,3755.2,0.4324]
[1753048928857,0.1328,3755.6,3755.0,1.53987574]
[1753048928858,0.1328,3755.6,3755.3,0.4324]
[1753048928999,0.1328,3755.6,3755.4,2.66278769]
[1753048929199,0.1328,3755.6,3755.5,2.66276128]
[1753048929636,0.002,3755.9,3755.8,2.66254859]
[1753048930036,0.002,3755.9,3755.8,3.09494859]
[1753048930235,0.002,3755.9,3755.8,6.88740936]
[1753048930911,0.002,3755.9,3755.8,7.67130936]
[1753048931116,1e-08,3755.9,3755.8,7.67130936]
[1753048932051,1e-08,3755.9,3755.8,28.29720536]
[1753048932259,1e-08,3756.7,3756.6,3.44548157]
[1753048932431,1e-08,3756.7,3756.6,11.14882973]
[1753048932644,1e-08,3756.7,3756.6,11.58122973]
[1753048933182,1e-08,3756.7,3756.6,11.14882973]
[1753048933458,1e-08,3756.7,3756.6,10.80428157]
[1753048933661,1e-08,3756.7,3756.6,11.23668157]
[1753048933840,1e-08,3756.7,3756.0,1.2216]
[1753048934159,1e-08,3756.7,3756.2,2.79503197]
[1753048934361,1e-08,3756.7,3756.2,0.1328]
[1753048935027,1e-08,3756.7,3756.2,2.79505848]
[1753048935425,1e-08,3756.7,3756.2,0.1328]
[1753048935649,1e-08,3756.7,3756.4,2.66207614]
[1753048936058,1e-08,3756.7,3756.3,0.4324]
[1753048936260,1e-08,3756.7,3756.4,2.66211308]
[1753048936467,1e-08,3756.7,3756.3,0.4324]
[1753048936765,1e-08,3756.7,3756.3,3.09453761]
[1753048936969,1e-08,3756.7,3756.3,0.4324]
[1753048937127,1e-08,3756.7,3756.4,2.66211398]
[1753048937328,1e-08,3756.7,3756.3,3.09458243]
[1753048937641,1e-08,3756.7,3756.3,0.4324]
[1753048937845,1e-08,3756.7,3756.4,2.66211347]
[1753048939065,1e-08,3756.7,3756.3,0.4324]
[1753048939273,1e-08,3756.7,3756.3,3.09457996]
[1753048939769,1e-08,3756.7,3755.6,6.45977339]
[1753048939770,1e-08,3756.7,3756.6,2.66198157]
[1753048940072,1e-08,3756.7,3755.6,3.7971]
[1753048940073,1e-08,3756.7,3755.9,0.4324]
[1753048940231,0.1328,3756.5,3755.9,2.79525433]
[1753048940433,4.22,3756.6,3755.6,2.66264597]
[1753048940779,0.1328,3756.3,3755.7,2.66256786]
[1753048940971,3.44222746,3756.2,3755.2,0.7606]
[1753048941128,0.1328,3755.8,3755.3,2.66284794]
[1753048941325,0.1328,3755.8,3755.2,2.66296092]
[1753048941875,0.1328,3755.8,3755.1,0.1328]
[1753048942086,0.1328,3755.8,3755.7,2.66261948]
[1753048942250,4.3528,3756.0,3755.7,2.66261451]
[1753048943139,4.3528,3756.0,3755.8,2.66252945]
[1753048943363,4.3528,3756.0,3755.8,0.4324]
[1753048943364,0.1328,3756.0,3755.8,0.4324]
[1753048943562,0.1328,3756.0,3755.8,3.0949294]
[1753048944474,0.1328,3756.0,3755.7,2.66259737]
[1753048945295,0.1328,3756.0,3755.5,0.4324]
[1753048945583,4.3478,3756.0,3755.8,2.66249343]
[1753048946179,4.3478,3756.0,3755.7,0.3824]
[1753048946180,0.1328,3756.0,3755.9,3.4239777]
[1753048946342,0.42410001,3756.7,3756.4,2.66205764]
[1753048946343,4.225,3756.6,3756.4,2.66205764]
[1753048946534,4.3578,3756.6,3756.3,2.6621898]
[1753048946735,4.3578,3756.6,3755.9,0.8943]
[1753048947183,4.3578,3756.6,3756.1,2.66232036]
[1753048947389,4.3578,3756.6,3755.9,0.1328]
[1753048947390,4.9291593,3756.6,3755.9,0.1328]
[1753048947692,0.1328,3756.4,3756.0,2.66239746]
[1753048947991,0.1328,3756.4,3756.1,2.66227351]
[1753048948375,4.3578,3756.4,3755.9,0.1328]
[1753048948685,0.1328,3756.4,3755.9,0.1328]
[1753048948884,0.1328,3756.4,3756.2,2.66226505]
[1753048949187,4.223,3756.3,3756.2,2.66226505]
[1753048949390,0.1328,3756.4,3756.3,2.66219418]
[1753048949991,0.1328,3756.6,3756.5,2.66201633]
[1753048950153,0.1328,3756.6,3756.5,3.12281633]
[1753048950348,0.1328,3756.6,3756.5,2.66201633]
[1753048951184,0.1328,3756.6,3756.5,3.12281633]
[1753048951547,1e-08,3756.7,3756.6,2.66198157]
[1753048951750,1e-08,3756.7,3756.6,4.06005706]
[1753048951969,1e-08,3756.7,3756.6,7.08667687]
[1753048952193,1e-08,3756.7,3756.6,11.41285706]
[1753048952600,1e-08,3756.7,3756.6,7.19285706]
[1753048952806,1e-08,3756.7,3756.6,6.25558157]
[1753048952967,1e-08,3756.7,3756.6,7.47458157]
[1753048953363,1e-08,3756.7,3756.6,3.25558157]
[1753048953801,1e-08,3756.7,3756.6,2.79478157]
[1753048954009,1e-08,3756.7,3756.4,0.1328]
[1753048954170,1e-08,3756.7,3756.3,2.66218213]
[1753048954369,1e-08,3756.7,3756.4,2.66212075]
[1753048955117,0.45510001,3756.7,3755.4,0.7838]
[1753048955274,0.1328,3756.4,3755.7,0.1328]
[1753048955590,0.1328,3756.4,3755.9,2.66246642]
[1753048955914,0.1328,3756.4,3755.9,2.66242966]
[1753048956891,0.1328,3756.4,3756.0,2.66239321]
[1753048957085,0.1328,3756.4,3756.1,2.66232957]
[1753048957292,0.1328,3756.4,3755.9,2.6624777]
[1753048957814,0.1328,3756.4,3756.0,2.66239464]
[1753048958016,0.1328,3756.4,3755.9,2.66246114]
[1753048958604,0.1328,3756.4,3756.0,2.66240111]
[1753048958899,0.1328,3756.4,3755.9,2.66345201]
[1753048959110,0.1328,3756.4,3756.0,3.12320081]
[1753048959416,0.1328,3756.4,3756.0,0.4608]
[1753048959578,0.1328,3756.4,3756.0,2.66239044]
[1753048959787,0.1328,3756.4,3756.1,0.4608]
[1753048959979,2.66221989,3756.3,3755.9,0.001]
[1753048960386,0.1328,3756.4,3755.9,0.001]
[1753048960585,0.1328,3756.4,3756.1,2.66232882]
[1753048961122,0.1328,3756.4,3755.9,2.66345015]
[1753048961280,0.1328,3756.4,3756.0,2.66239355]
[1753048961475,0.1328,3756.4,3755.9,2.66347166]
[1753048962318,0.1328,3756.4,3756.0,2.66240045]
[1753048963214,0.7765,3756.3,3756.0,2.66239208]
[1753048963390,0.7765,3756.3,3755.9,2.66346025]
[1753048964434,0.7765,3756.3,3755.9,0.001]
[1753048964899,0.7765,3756.3,3755.9,2.66242386]
[1753048965083,0.7765,3756.3,3755.7,0.0838]
[1753048965286,0.7765,3756.3,3755.9,2.66242394]
[1753048965486,0.7765,3756.3,3756.0,2.66237788]
[1753048965688,0.7765,3756.3,3755.7,0.0838]
[1753048965927,0.7765,3756.3,3756.0,2.66234027]
[1753048966295,0.7765,3756.3,3756.1,2.66233276]
[1753048966624,0.1328,3756.4,3756.3,2.66219418]
[1753048967001,0.1328,3756.4,3756.1,2.66228014]
[1753048967207,0.1328,3756.4,3756.1,2.662312]